Workbook

Sheet ADA CONSTRUCTION JAN 2025 CAA
A1: DEPARTMENT OF TRANSPORTATION - CALTRANS
A2: DBE Commitment at Award (CAA) on Federally Funded Major Construction Contracts - October 1, 2024 - January 31, 2025
A4: Total Award Amount Year-to-Date (YTD) | C4: Total DBE Commitment Amount YTD | F4: Total Prime Contracts Awarded YTD
A5: 1012050227 | C5: =SUM(C7:C18) -> 235161851.1 | F5: =SUM(C233:C245,I233:I245,F233:F245) -> 61
A6: Groups | C6: Commitment Dollars YTD | D6: Firms YTD | E6: Contracts YTD | F6: % of Contracts | G6: % of DBE $ | H6: % of Total $
A7: Hispanic American Male | C7: =SUMIF(D30:D104,"m", C30:C104) -> 57720593.72 | D7: =COUNTIF(D30:D104,"M") -> 53 | E7: =SUMIF(D30:D104,"M",E30:E104) -> 132 | F7: =E7/E20 -> 0.2850971922 | G7: =C7/C5 -> 0.2454504991 | H7: =C7/A5 -> 0.05703332914
A8: Hispanic American Female | C8: =SUMIF(D30:D104,"F", C30:C104) -> 27801245.16 | D8: =COUNTIF(D30:D104,"F") -> 20 | E8: =SUMIF(D30:D104,"F",E30:E104) -> 63 | F8: =E8/E20 -> 0.1360691145 | G8: =C8/C5 -> 0.1182217483 | H8: =C8/A5 -> 0.02747022273
A9: African American Male | C9: =SUMIF(D118:D131,"m", C118:C131) -> 6900420 | D9: =COUNTIF(D118:D131,"M") -> 11 | E9: =SUMIF(D118:D131,"M",E118:E131) -> 17 | F9: =E9/E20 -> 0.03671706263 | G9: =C9/C5 -> 0.02934327982 | H9: =C9/A5 -> 0.006818258436
A10: African American Female | C10: =SUMIF(D118:D131,"F", C118:C131) -> 5027375.63 | D10: =COUNTIF(D118:D131,"F") -> 2 | E10: =SUMIF(D118:D131,"F",E118:E131) -> 5 | F10: =E10/E20 -> 0.01079913607 | G10: =C10/C5 -> 0.02137836391 | H10: =C10/A5 -> 0.004967515934
A11: Asian Pacific Male | C11: =SUMIF(D149:D165,"m", C149:C165) -> 5099764.76 | D11: =COUNTIF(D149:D165,"M") -> 10 | E11: =SUMIF(D149:D165,"M",E149:E165) -> 23 | F11: =E11/E20 -> 0.04967602592 | G11: =C11/C5 -> 0.02168619075 | H11: =C11/A5 -> 0.005039043145
A12: Asian Pacific Female | C12: =SUMIF(D149:D165,"F", C149:C165) -> 9223967.45 | D12: =COUNTIF(D149:D165,"F") -> 5 | E12: =SUMIF(D149:D165,"F",E149:E165) -> 24 | F12: =E12/E20 -> 0.05183585313 | G12: =C12/C5 -> 0.03922391071 | H12: =C12/A5 -> 0.009114139991
A13: Subcontinent Asian Male | C13: =SUMIF(D134:D146,"m", C134:C146) -> 13297772.08 | D13: =COUNTIF(D134:D146,"M") -> 9 | E13: =SUMIF(D134:D146,"M",E134:E146) -> 21 | F13: =E13/E20 -> 0.04535637149 | G13: =C13/C5 -> 0.05654731844 | H13: =C13/A5 -> 0.01313943886
A14: Subcontinent Asian Female | C14: =SUMIF(D134:D146,"F", C134:C146) -> 0 | D14: =COUNTIF(D134:D146,"F") -> 0 | E14: =SUMIF(D134:D146,"F",E134:E146) -> 0 | F14: =E14/E20 -> 0 | G14: =C14/C5 -> 0 | H14: =C14/A5 -> 0
A15: Native American Male | C15: =SUMIF(D107:D115,"m", C107:C115) -> 12498529.9 | D15: =COUNTIF(D107:D115,"M") -> 3 | E15: =SUMIF(D107:D115,"M",E107:E115) -> 17 | F15: =E15/E20 -> 0.03671706263 | G15: =C15/C5 -> 0.05314862866 | H15: =C15/A5 -> 0.01234971305
A16: Native American Female | C16: =SUMIF(D107:D115,"F", C107:C115) -> 7281205 | D16: =COUNTIF(D107:D115,"F") -> 4 | E16: =SUMIF(D107:D115,"F",E107:E115) -> 5 | F16: =E16/E20 -> 0.01079913607 | G16: =C16/C5 -> 0.0309625263 | H16: =C16/A5 -> 0.007194509525
A17: Non Minority Women | C17: =SUMIF(D172:D228,"F", C172:C228) -> 90310977.4 | D17: =COUNTIF(D172:D228,"F") -> 55 | E17: =SUMIF(D172:D228,"F",E172:E228) -> 156 | F17: =E17/E20 -> 0.3369330454 | G17: =C17/C5 -> 0.3840375341 | H17: =C17/A5 -> 0.08923566732
A18: Other Men | C18: =SUMIF(D168:D169,"m", C168:C169) -> 0 | D18: =COUNTIF(D168:D169,"M") -> 0 | E18: =SUMIF(D168:D169,"M",E168:E169) -> 0 | F18: =E18/E20 -> 0 | G18: =C18/C5 -> 0 | H18: =C18/A5 -> 0
F19: =E19/E20 -> 0 | G19: =C19/C5 -> 0 | H19: =C19/A5 -> 0
A20: Total | C20: =SUM(C7:C18) -> 235161851.1 | D20: =SUM(D7:D19) -> 172 | E20: =SUM(E7:E19) -> 463
A21: Total Primes Contracts | C21: =SUM(C233:C245,I233:I245,F233:F245) -> 61
A23: Yellow = DBEs | C23: Green = Trucking | D23: =COUNTIF(B30:B228,43) -> 28 | E23: =SUM(SUMIF(B29:B104,"43",C29:C104),SUMIF(B106:B169,"43",C106:C169),SUMIF(B171:B228,"43",C171:C228)) -> 27815916.9 | F23: =E23/C5 -> 0.1182841382
A24: Red = Prime Contractor | C24: Blue = Supplier | D24: =COUNTIF(B30:B228,33) -> 25 | E24: =SUM(SUMIF(B30:B104,"33",C30:C104),SUMIF(B107:B169,"33",C107:C169),SUMIF(B172:B228,"33",C172:C228)) -> 44128973.34 | F24: =E24/C5 -> 0.187653623
A25: Red Italic = DBE firm as Prime | C25: White = Other | D25: =COUNTIF(B30:B228,-4142) -> 114 | E25: =C5-(E23+E24) -> 163216960.9 | F25: =E25/C5 -> 0.6940622388
A26: BOLD = women
A27: * = Used both as Trucking & Supplier
A29: Hispanic American | B29: Column1 | C29: Dollars | D29: M/F | E29: Contract | F29: Contract # | G29: Prime | H29: Prime Name | I29: Districts
A30: 1 PASS SWEEPING, INC. | B30: -4142 | C30: 127500 | D30: M | E30: 1 | F30: =FETCHCOMMENT(E30) -> 12-0K91U4 | G30: 1 | H30: =FETCHCOMMENT(G30) -> GRANITE CONSTRUCTION COMPANY | I30: 12
A31: A&M CONSULTING ENGINEERS | B31: -4142 | C31: 97600 | D31: M | E31: 6 | F31: =FETCHCOMMENT(E31) -> 08-1J6104 04-0K6404 04-2K7404 03-3H8304 04-2Q8004 05-1H6504 | G31: 6 | H31: =FETCHCOMMENT(G31) -> FBD VANGUARD CONSTRUCTION, INC. O.C. JONES & SONS INC BAY CITIES PAVING & GRADING PACIFIC INFRASTRUCTURE CONSTRUCTION, LLC GORDON N. BALL, INC. GRANITE CONSTRUCTION COMPANY | I31: 3,4,5,8
A32: ABSL CONSTRUCTION | B32: -4142 | C32: 1745438.86 | D32: M | E32: 13 | F32: =FETCHCOMMENT(E32) -> 03-4H8704 05-1J7804 02-3H6904 04-2Q6104 07-333604 10-0Q2104 01-0F7104 04-0P9204 04-2K7404 04-3J2604 05-1H6504 06-487404 10-1L2804 | G32: 8 | H32: =FETCHCOMMENT(G32) -> O.C. JONES & SONS INC CALPORTLAND CONSTRUCTION DIG IT CONSTRUCTION, INC. GRANITE ROCK COMPANY SULLY-MILLER CONTRACTING COMPANY BAY CITIES PAVING & GRADING, INC. GHILOTTI CONSTRUCTION COMPANY INC MYERS & SONS CONSTRUCGTION LLC | I32: 1,2,3,4,5,6,7,10
A33: ADVANTAGE DEMOLITION & GRADING, INC. | B33: -4142 | C33: 450000 | D33: M | E33: 1 | F33: =FETCHCOMMENT(E33) -> 06-487404 | G33: 1 | H33: =FETCHCOMMENT(G33) -> GRANITE CONSTRUCTION COMPANY | I33: 6
A34: ALCORN FENCE COMPANY | B34: -4142 | C34: 8901 | D34: M | E34: 1 | F34: =FETCHCOMMENT(E34) -> 08-1J6104 | G34: 1 | H34: =FETCHCOMMENT(G34) -> FBD VANGUARD CONSTRUCTION, INC. | I34: 8
A35: ATHENA TRUCKING | B35: 43 | C35: 200000 | D35: M | E35: 1 | F35: =FETCHCOMMENT(E35) -> 12-0K91U4 | G35: 1 | H35: =FETCHCOMMENT(G35) -> GRANITE CONSTRUCTION COMPANY | I35: 12
A36: AUSTIN ENTERPRISE | B36: -4142 | C36: 1137573.85 | D36: F | E36: 10 | F36: =FETCHCOMMENT(E36) -> 11-430384 05-1J7804 08-1J6104 04-2K7404 04-2Q8004 05-1K4504 05-1K6404 06-487404 12-0K91U4 08-1K6904 | G36: 6 | H36: =FETCHCOMMENT(G36) -> HAZARD CONSTRUCTION ENGINEERING INC CALPORTLAND CONSTRUCTION FBD VANGUARD CONSTRUCTION, INC. BAY CITIES PAVING & GRADING, INC. GORDON N. BALL, INC. GRANITE CONSTRUCTION COMPANY | I36: 4,5,6,8,11,12
A37: BAY LINE CUTTING & CORING | B37: -4142 | C37: 78120 | D37: M | E37: 1 | F37: =FETCHCOMMENT(E37) -> 05-1H6504 | G37: 1 | H37: =FETCHCOMMENT(G37) -> GRANITE CONSTRUCTION COMPANY | I37: 5
A38: CENTRAL COAST TRAFFIC SAFETY | B38: 33 | C38: 17975.1 | D38: M | E38: 1 | F38: =FETCHCOMMENT(E38) -> 05-1Q03U4 | G38: 1 | H38: =FETCHCOMMENT(G38) -> PAPICH CONSTRUCTION COMPANY, INC. | I38: 5
A39: CHAVEZ TRUCKING | B39: 43 | C39: 1657180.2 | D39: F | E39: 4 | F39: =FETCHCOMMENT(E39) -> 04-2Q6104 04-2K7404 04-3J2604 04-2Q8004 | G39: 4 | H39: =FETCHCOMMENT(G39) -> GRANITE ROCK COMPANY BAY CITIES PAVING & GRADING, INC. O.C. JONES & SONS, INC. GORDON N. BALL, INC. | I39: 4
A40: COVARRUBIAS TRAFFIC CONTROL | B40: -4142 | C40: 832000 | D40: F | E40: 2 | F40: =FETCHCOMMENT(E40) -> 07-4X9704 08-1K4004 | G40: 1 | H40: =FETCHCOMMENT(G40) -> BEADOR CONSTRUCTION COMPANY, INC. | I40: 7,8
A41: CUJO CONSTRUCTION INC | B41: 33 | C41: 211352 | D41: F | E41: 2 | F41: =FETCHCOMMENT(E41) -> 07-358404 12-0K91U4 | G41: 2 | H41: =FETCHCOMMENT(G41) -> YAKAR GRANITE CONSTRUCTION COMPANY | I41: 7,12
A42: D.B. ELECTRIC INC | B42: -4142 | C42: 1808806 | D42: M | E42: 1 | F42: =FETCHCOMMENT(E42) -> 08-1J3004 | G42: 1 | H42: =FETCHCOMMENT(G42) -> SULLY-MILLER CONTRACTING COMPANY | I42: 8
A43: DC TRAFFIC CONTROL | B43: -4142 | C43: 38300 | D43: M | E43: 1 | F43: =FETCHCOMMENT(E43) -> 06-487404 | G43: 1 | H43: =FETCHCOMMENT(G43) -> GRANITE CONSTRUCTION COMPANY | I43: 6
A44: DELTA BAY CONSULTANTS LLC | B44: -4142 | C44: 9100 | D44: M | E44: 3 | F44: =FETCHCOMMENT(E44) -> 03-4H8704 01-0F7104 02-0K6404 | G44: 3 | H44: =FETCHCOMMENT(G44) -> O.C. JONES & SONS INC GHILOTTI CONSTRUCTION COMPANY MCCUEN CONSTRUCTION | I44: 1,2,3
A45: DESIGN BUILD ENGINEERING | B45: -4142 | C45: 2050707.6 | D45: M | E45: 4 | F45: =FETCHCOMMENT(E45) -> 07-348404 07-356504 12-0K91U4 12-0R57U4 | G45: 3 | H45: =FETCHCOMMENT(G45) -> ACCU CONSTRUCTION, INC. GRANITE CONSTRUCTION COMPANY SECURITY PAVING COMPANY, INC. | I45: 7,12
A46: DRAGON MATERIAL TRANSPORT | B46: -4142 | C46: 630464.4 | D46: F | E46: 2 | F46: =FETCHCOMMENT(E46) -> 05-1H6504 06-487404 | G46: 1 | H46: =FETCHCOMMENT(G46) -> GRANITE CONSTRUCTION COMPANY | I46: 5,6
A47: DRS REBAR INC | B47: -4142 | C47: 290463.2 | D47: M | E47: 3 | F47: =FETCHCOMMENT(E47) -> 11-430384 08-1J7204 12-0R3154 | G47: 3 | H47: =FETCHCOMMENT(G47) -> HAZARD CONSTRUCTION ENGR, LLC SULLY-MILLER CONTRACTING COMPANY POWELL CONSTRUCTORS, INC. | I47: 8,11,12
A48: EIGHTEEN TRUCKING | B48: 43 | C48: 465000 | D48: F | E48: 1 | F48: =FETCHCOMMENT(E48) -> 04-2Q8004 | G48: 1 | H48: =FETCHCOMMENT(G48) -> GORDON N. BALL, INC. | I48: 4
A49: ENDEMIC ENVIRONMENTAL SERVICES | B49: -4142 | C49: 835145 | D49: M | E49: 8 | F49: =FETCHCOMMENT(E49) -> 03-0J01U4 05-1J7804 12-0R3134 01-0F7104 03-3H8304 08-1J2704 12-0R57U4 08-1K6904 | G49: 8 | H49: =FETCHCOMMENT(G49) -> MERCER-FRASER COMPANY CALPORTLAND CONSTRUCTION PETERSON-CHASE GENERAL ENGINEERING CONSTRUCTION, INC. GHILOTTI CONSTRUCTION COMPANY PACIFIC INFRASTRUCTURE CONSTRUCTION, LLC SULLY-MILLER CONTRACTING COMPANY SECURITY PAVING COMPANY, INC. GRANITE CONSTRUCTION COMPANY | I49: 1,3,5,8,12
A50: FRONTLINE TRAFFIC CONTROL | B50: -4142 | C50: 88880 | D50: M | E50: 1 | F50: =FETCHCOMMENT(E50) -> 07-358404 | G50: 1 | H50: =FETCHCOMMENT(G50) -> YAKAR | I50: 7
A51: G&F CONCRETE CUTTING | B51: -4142 | C51: 448030 | D51: F | E51: 1 | F51: =FETCHCOMMENT(E51) -> 12-0R57U4 | G51: 1 | H51: =FETCHCOMMENT(G51) -> SECURITY PAVING COMPANY, INC. | I51: 12
A52: G&G ELECTRIC | B52: -4142 | C52: 5379795 | D52: M | E52: 1 | F52: =FETCHCOMMENT(E52) -> 12-0R3154 | G52: 1 | H52: =FETCHCOMMENT(G52) -> POWELL CONSTRUCTORS, INC. | I52: 12
A53: GEO-STRUCTURAL ENGINEERING | B53: -4142 | C53: 752029 | D53: M | E53: 1 | F53: =FETCHCOMMENT(E53) -> 07-4X9704 | G53: 1 | H53: =FETCHCOMMENT(G53) -> BEADOR CONSTRUCTION COMPANY, INC. | I53: 7
A54: G.O. RODRIGUEZ TRUCKING | B54: 43 | C54: 15120 | D54: M | E54: 1 | F54: =FETCHCOMMENT(E54) -> 07-4X9704 | G54: 1 | H54: =FETCHCOMMENT(G54) -> BEADOR CONSTRUCTION COMPANY, INC. | I54: 7
A55: GOLDEN BAY FENCE PLUS IRON | B55: 33 | C55: 849890 | D55: M | E55: 2 | F55: =FETCHCOMMENT(E55) -> 04-3J2604 05-1H6504 | G55: 2 | H55: =FETCHCOMMENT(G55) -> O.C. JONES & SONS, INC. GRANITE CONSTRUCTION COMPANY | I55: 4,5
A56: GREENCOAST LANDSCAPE, INC. | B56: -4142 | C56: 368159 | D56: F | E56: 1 | F56: =FETCHCOMMENT(E56) -> 05-1K4504 | G56: 1 | H56: =FETCHCOMMENT(G56) -> CALPORTLAND CONSTRUCTION | I56: 5
A57: HIGH LIGHT ELECTRIC, INC. | B57: -4142 | C57: 11497973 | D57: M | E57: 4 | F57: =FETCHCOMMENT(E57) -> 12-0R3134 11-056404 08-1K4004 12-0K91U4 | G57: 4 | H57: =FETCHCOMMENT(G57) -> PETERSON-CHASE GENERAL ENGINEERING CONSTRUCTION, INC. HAZARD CONSTRUCTION COMPANY BEADOR CONSTRUCTION COMPANY, INC. GRANITE CONSTRUCTION COMPANY | I57: 8,11,12
A58: IN-LINE FENCE & RAILING | B58: -4142 | C58: 474725 | D58: M | E58: 1 | F58: =FETCHCOMMENT(E58) -> 12-0K91U4 | G58: 1 | H58: =FETCHCOMMENT(G58) -> GRANITE CONSTRUCTION COMPANY | I58: 12
A59: INLAND GARDENS AND TROPICS | B59: -4142 | C59: 118287.73 | D59: F | E59: 1 | F59: =FETCHCOMMENT(E59) -> 08-1K4004 | G59: 1 | H59: =FETCHCOMMENT(G59) -> BEADOR CONSTRUCTION COMPANY, INC. | I59: 8
A60: JEFFERSON STATE HIGHWAYS INC | B60: -4142 | C60: 3440922.1 | D60: M | E60: 12 | F60: =FETCHCOMMENT(E60) -> 03-4H8704 03-0J01U4 02-3H6904 01-0F7104 01-0J8904 02-0K6404 02-4H03U4 02-1J75U4 02-4H0104 02-4H0704 03-3H8304 04-2Q8004 | G60: 8 | H60: =FETCHCOMMENT(G60) -> O.C. JONES & SONS INC MERCER-FRASER COMPANY JEFFERSON STATE HIGHWAYS, INC. GHILOTTI CONSTRUCTION COMPANY INC MCCUEN CONSTRUCTION INC HAT CREEK CONSTRUCTION MATERIALS PACIFIC INFRASTRUCTURE CONSTRUCTION, LLC GORDON N. BALL, INC. | I60: 1,2,3,4
A61: JFL ELECTRIC | C61: 66500 | D61: M | E61: 1 | F61: =FETCHCOMMENT(E61) -> 08-1K6904 | G61: 1 | H61: =FETCHCOMMENT(G61) -> GRANITE CONSTRUCTION COMPANY | I61: 8
A62: JUNIOR SWEEPING COMPANY LLC | B62: 43 | C62: 52920 | D62: M | E62: 2 | F62: =FETCHCOMMENT(E62) -> 01-0F7104 05-1K6404 | G62: 2 | H62: =FETCHCOMMENT(G62) -> GHILOTTI CONSTRUCTION COMPANY, INC. GRANITE CONSTRUCTION COMPANY | I62: 1,5
A63: K&G CONCRETE PUMPING | B63: -4142 | C63: 41895.6 | D63: M | E63: 1 | F63: =FETCHCOMMENT(E63) -> 04-2Q8004 | G63: 1 | H63: =FETCHCOMMENT(G63) -> GORDON N. BALL, INC. | I63: 4
A64: LA STEEL SERVICES, INC. | C64: 409638.2 | D64: M | E64: 1 | F64: =FETCHCOMMENT(E64) -> 08-1K6904 | G64: 1 | H64: =FETCHCOMMENT(G64) -> GRANITE CONSTRUCTION COMPANY | I64: 8
A65: LOGISTICAL ENTERPRISES | B65: 33 | C65: 700880.11 | D65: F | E65: 5 | F65: =FETCHCOMMENT(E65) -> 03-4H8704 03-0J01U4 04-0K1004 12-0S1404 04-3J2604 | G65: 4 | H65: =FETCHCOMMENT(G65) -> O.C. JONES & SONS INC MERCER-FRASER COMPANY MIKE BROWN ELECTRIC CO. CHUMO CONSTRUCTION INC | I65: 3,4,12
A66: LONE STAR LANDSCAPE | B66: -4142 | C66: 853676 | D66: M | E66: 4 | F66: =FETCHCOMMENT(E66) -> 04-0P9204 04-0P7604 05-1H6504 05-1K6404 | G66: 3 | H66: =FETCHCOMMENT(G66) -> MYERS & SONS CONSTRUCTION, LLC. ST. FRANCIS ELECTRIC, LLC. GRANITE CONSTRUCTION COMPANY | I66: 4,5
A67: LOS MORALES TRUCKING, INC. | B67: 43 | C67: 336000 | D67: M | E67: 1 | F67: =FETCHCOMMENT(E67) -> 08-1K4004 | G67: 1 | H67: =FETCHCOMMENT(G67) -> BEADOR CONSTRUCTION COMPANY, INC. | I67: 8
A68: M&S ENVIRONMENTAL | B68: 33 | C68: 2076579.2 | D68: M | E68: 3 | F68: =FETCHCOMMENT(E68) -> 02-3H6904 01-0J8904 02-0K6404 | G68: 3 | H68: =FETCHCOMMENT(G68) -> DIG IT CONSTRUCTION, INC. MERCER FRASER COMPANY MCCUEN CONSTRUCTION | I68: 1,2
A69: MADERS CONCRETE COMPANY | B69: -4142 | C69: 303950 | D69: M | E69: 1 | F69: =FETCHCOMMENT(E69) -> 06-487404 | G69: 1 | H69: =FETCHCOMMENT(G69) -> GRANITE CONSTRUCTION COMPANY | I69: 6
A70: MANERI TRAFFIC CONTROL | B70: -4142 | C70: 17497473.87 | D70: F | E70: 13 | F70: =FETCHCOMMENT(E70) -> 11-430384 12-0S1404 07-333604 08-1J6104 07-358404 08-1J3004 08-1J2704 08-1J7204 08-1K4004 12-0R3154 12-0R57U4 12-0S7004 08-1K6904 | G70: 10 | H70: =FETCHCOMMENT(G70) -> HAZARD CONSTRUCTION ENGR, LLC CHUMO CONSTRUCTION INC SULLY-MILLER CONTRACTING COMPANY FBD VANGUARD CONSTRUCTION, INC. YAKAR BEADOR CONSTRUCTION COMPANY, INC. POWELL CONSTRUCTORS, INC. SECURITY PAVING COMPANY, INC. AUTOBAHN CONSTRUCTION, INC. GRANITE CONSTRUCTION COMPANY | I70: 7,8,11,12
A71: MAVERICK SWEEPING | B71: -4142 | C71: 142560 | D71: F | E71: 1 | F71: =FETCHCOMMENT(E71) -> 08-1K4004 | G71: 1 | H71: =FETCHCOMMENT(G71) -> BEADOR CONSTRUCTION COMPANY, INC. | I71: 8
A72: MONZON & SON ENTERPRISES INC | B72: 43 | C72: 7709707 | D72: M | E72: 8 | F72: =FETCHCOMMENT(E72) -> 11-430384 12-0S1404 07-333604 08-1J6104 12-0R3134 08-1J2704 08-1J7204 12-0R57U4 | G72: 6 | H72: =FETCHCOMMENT(G72) -> HAZARD CONSTRUCTION ENGR, LLC CHUMO CONSTRUCTION INC SULLY-MILLER CONTRACTING COMPANY FBD VANGUARD CONSTRUCTION, INC. PETERSON-CHASE GENERAL ENGINEERING CONSTRUCTION, INC. SECURITY PAVING COMPANY, INC. | I72: 7,8,11,12
A73: MORAN CONSULTING | B73: -4142 | C73: 94640 | D73: M | E73: 1 | F73: =FETCHCOMMENT(E73) -> 07-333604 | G73: 1 | H73: =FETCHCOMMENT(G73) -> SULLY-MILLER CONTRACTING COMPANY | I73: 7
A74: NOLD'S EQUIPMENT | B74: 33 | C74: 362808 | D74: F | E74: 1 | F74: =FETCHCOMMENT(E74) -> 07-333604 | G74: 2 | H74: =FETCHCOMMENT(G74) -> SULLY-MILLER CONTRACTING COMPANY YAKAR | I74: 7
A75: POLO ENGINEERING, INC. | B75: -4142 | C75: 673013 | D75: F | E75: 1 | F75: =FETCHCOMMENT(E75) -> 07-4P8504 | G75: 1 | H75: =FETCHCOMMENT(G75) -> POLO ENGINEERING, INC. | I75: 7
A76: PRE-CON PRODUCTS, LTD. | B76: -4142 | C76: 31397.36 | D76: M | E76: 1 | F76: =FETCHCOMMENT(E76) -> 08-1K4004 | G76: 1 | H76: =FETCHCOMMENT(G76) -> BEADOR CONSTRUCTION COMPANY, INC. | I76: 8
A77: PREMIER VALLEY TRANSPORT INC | B77: 43 | C77: 237150 | D77: M | E77: 1 | F77: =FETCHCOMMENT(E77) -> 05-1Q03U4 | G77: 1 | H77: =FETCHCOMMENT(G77) -> PAPICH CONSTRUCTION COMPANY, INC. | I77: 5
A78: PTM GENERAL ENGINEERING | B78: -4142 | C78: 970968 | D78: F | E78: 2 | F78: =FETCHCOMMENT(E78) -> 07-4P8504 05-1K5104 | G78: 2 | H78: =FETCHCOMMENT(G78) -> PTM GENERAL ENGINEERING SERVICES, INC. CENTRAL COAST FINANCIAL GROUP, INC. DBA CCFG CONSTRUCTION | I78: 5,7
A79: QA CONSTRUCTORS | B79: -4142 | C79: 1277790 | D79: M | E79: 2 | F79: =FETCHCOMMENT(E79) -> 04-0P9204 04-0P7604 | G79: 2 | H79: =FETCHCOMMENT(G79) -> MYERS & SONS CONSTRUCTION, LLC. ST. FRANCIS ELECTRIC, LLC. | I79: 4
A80: QUALITY TRAFFIC CONTROL | B80: -4142 | C80: 219725 | D80: M | E80: 2 | F80: =FETCHCOMMENT(E80) -> 11-056404 12-0K91U4 | G80: 2 | H80: =FETCHCOMMENT(G80) -> HAZARD CONSTRUCTION ENGR, LLC GRANITE CONSTRUCTION COMPANY | I80: 11,12
A81: QUIMU CONTRACTING, INC. | B81: -4142 | C81: 386080 | D81: M | E81: 1 | F81: =FETCHCOMMENT(E81) -> 03-3J9104 | G81: 1 | H81: =FETCHCOMMENT(G81) -> QUIMU CONTRACTING, INC. | I81: 3
A82: REYNAGA TRANSPORTATION | B82: 43 | C82: 1158480 | D82: M | E82: 2 | F82: =FETCHCOMMENT(E82) -> 07-333604 08-1J6104 | G82: 2 | H82: =FETCHCOMMENT(G82) -> SULLY-MILLER CONTRACTING COMPANY FBD VANGUARD CONSTRUCTION, INC. | I82: 7,8
A83: R.M.C. TRUCKING | B83: 43 | C83: 114500 | D83: M | E83: 1 | F83: =FETCHCOMMENT(E83) -> 08-1J7204 | G83: 1 | H83: =FETCHCOMMENT(G83) -> SULLY-MILLER CONTRACTING COMPANY | I83: 8
A84: ROBINSON SWEEPING INC | B84: 43 | C84: 162200 | D84: F | E84: 2 | F84: =FETCHCOMMENT(E84) -> 03-0J01U4 01-0J8904 | G84: 1 | H84: =FETCHCOMMENT(G84) -> MERCER-FRASER COMPANY | I84: 1,3
A85: RUPERT CONSTRUCTION SUPPLY | B85: 33 | C85: 1202406.7 | D85: M | E85: 10 | F85: =FETCHCOMMENT(E85) -> 11-430384 05-1J7804 08-1J6104 04-3J2604 01-0H6404 02-1J75U4 04-2Q8004 06-487404 08-1K4004 12-0K91U4 | G85: 9 | H85: =FETCHCOMMENT(G85) -> HAZARD CONSTRUCTION ENGR, LLC CALPORTLAND CONSTRUCTION FBD VANGUARD CONSTRUCTION, INC. O.C. JONES AND SONS WYLATTI RESOURCE MANAGEMENT, INC. HAT CREEK CONSTRUCTION & MATERIALS, INC. GORDON N. BALL, INC. GRANITE CONSTRUCTION COMPANY BEADOR CONSTRUCTION COMPANY, INC. | I85: 1,2,4,5,6,8,11,12
A86: S&S TRUCKING | B86: 43 | C86: 66903 | D86: M | E86: 1 | F86: =FETCHCOMMENT(E86) -> 04-3J2604 | G86: 1 | H86: =FETCHCOMMENT(G86) -> O.C. JONES & SONS, INC. | I86: 4
A87: SAFEWAY SIGN COMPANY | B87: -4142 | C87: 164636.04 | D87: M | E87: 3 | F87: =FETCHCOMMENT(E87) -> 11-430384 08-1K4004 12-0R3154 | G87: 3 | H87: =FETCHCOMMENT(G87) -> HAZARD CONSTRUCTION ENGR, LLC BEADOR CONSTRUCTION COMPANY, INC. POWELL CONSTRUCTORS, INC. | I87: 11
A88: SHIELD RENTALS & SALES LLC | B88: -4142 | C88: 174900 | D88: M | E88: 1 | F88: =FETCHCOMMENT(E88) -> 04-2Q8004 | G88: 1 | H88: =FETCHCOMMENT(G88) -> GORDON N. BALL, INC. | I88: 4
A89: SOCAL WELDING | B89: -4142 | C89: 337930.25 | D89: M | E89: 1 | F89: =FETCHCOMMENT(E89) -> 04-2Q8004 | G89: 1 | H89: =FETCHCOMMENT(G89) -> GORDON N. BALL, INC. | I89: 4
A90: SWPPQUEEN | B90: -4142 | C90: 14425 | D90: F | E90: 1 | F90: =FETCHCOMMENT(E90) -> 04-0P7604 | G90: 1 | H90: =FETCHCOMMENT(G90) -> ST. FRANCIS ELECTRIC, LLC. | I90: 4
A91: TERRA WEST | B91: -4142 | C91: 5600 | D91: M | E91: 2 | F91: =FETCHCOMMENT(E91) -> 11-430384 11-056404 | G91: 1 | H91: =FETCHCOMMENT(G91) -> HAZARD CONSTRUCTION ENGR, LLC | I91: 11
A92: TOTAL SITE SUPPLY COMPANY | B92: 33 | C92: 35526.34 | D92: M | E92: 1 | F92: =FETCHCOMMENT(E92) -> 08-1K4004 | G92: 1 | H92: =FETCHCOMMENT(G92) -> BEADOR CONSTRUCTION COMPANY, INC. | I92: 8
A93: TR DIGITAL, INC. | B93: -4142 | C93: 100000 | D93: M | E93: 1 | F93: =FETCHCOMMENT(E93) -> 04-2Q8004 | G93: 1 | H93: =FETCHCOMMENT(G93) -> GORDON N. BALL, INC. | I93: 4
A94: TRANSPACIFIC STEEL LLC | B94: -4142 | C94: 3096020.44 | D94: M | E94: 4 | F94: =FETCHCOMMENT(E94) -> 05-1J7804 04-2Q8004 05-1K4504 06-487404 | G94: 3 | H94: =FETCHCOMMENT(G94) -> CALPORTLAND CONSTRUCTION GORDON N. BALL, INC. GRANITE CONSTRUCTION COMPANY | I94: 5
A95: TREESMITH ENTERPRISES | C95: 858000 | D95: F | E95: 1 | F95: =FETCHCOMMENT(E95) -> 08-1K6904 | G95: 1 | H95: =FETCHCOMMENT(G95) -> GRANITE CONSTRUCTION COMPANY | I95: 8
A96: TULLY INC | B96: -4142 | C96: 310870 | D96: F | E96: 11 | F96: =FETCHCOMMENT(E96) -> 03-4H8704 04-1Q2004 10-0Q2104 01-0F7104 04-0K6404 04-3J2604 01-0H6404 03-3H8304 04-2Q8004 06-487404 10-1L2804 | G96: 8 | H96: =FETCHCOMMENT(G96) -> O.C. JONES & SONS INC COLUMBIA ELECTRIC, INC. BAY CITIES PAVING & GRADING, INC. GHILOTTI CONSTRUCTION COMPANY, INC. WYLATTI RESOURCE MANAGEMENT, INC. PACIFIC INFRASTRUCTURE CONSTRUCTION, LLC GORDON N. BALL, INC. GRANITE CONSTRUCTION COMPANY | I96: 1,3,4,6,10
A97: V3 CONSTRCTION, INC. | C97: 3996938.2 | D97: M | E97: 1 | F97: =FETCHCOMMENT(E97) -> 08-1K6904 | G97: 1 | H97: =FETCHCOMMENT(G97) -> GRANITE CONSTRUCTION COMPANY | I97: 8
A98: WCW INC. | B98: -4142 | C98: 973683.5 | D98: M | E98: 1 | F98: =FETCHCOMMENT(E98) -> 04-2Q8004 | G98: 1 | H98: =FETCHCOMMENT(G98) -> GORDON N. BALL, INC. | I98: 4
A99: WEST PACIFIC CONCRETE | B99: -4142 | C99: 102378.03 | D99: M | E99: 1 | F99: =FETCHCOMMENT(E99) -> 08-1J2704 | G99: 1 | H99: =FETCHCOMMENT(G99) -> SULLY-MILLER CONTRACTING COMPANY | I99: 8
A100: WESTERN TRAFFIC SUPPLY, INC. | B100: -4142 | C100: 1720152 | D100: M | E100: 3 | F100: =FETCHCOMMENT(E100) -> 04-2Q6104 04-2K7404 04-0P7604 | G100: 3 | H100: =FETCHCOMMENT(G100) -> GRANITE ROCK COMPANY BAY CITIES PAVING & GRADING INC ST. FRANCIS ELECTRIC, LLC. | I100: 4
A101: YMD MATERIAL BROKER | B101: -4142 | C101: 240000 | D101: F | E101: 1 | F101: =FETCHCOMMENT(E101) -> 08-1J7204 | G101: 1 | H101: =FETCHCOMMENT(G101) -> SULLY-MILLER CONTRACTING COMPANY | I101: 8
A102: ZABEL ENTERPRISES | B102: 43 | C102: 115500 | D102: M | E102: 1 | F102: =FETCHCOMMENT(E102) -> 01-0J8904 | G102: 1 | H102: =FETCHCOMMENT(G102) -> MERCER-FRASER COMPANY | I102: 4
A106: Native American | B106: Column1 | C106: Dollars | D106: M/F | E106: Contract | F106: Contract # | G106: Prime | H106: Prime Name | I106: Districts
A107: CREST EQUIPMENT | B107: -4142 | C107: 434000 | D107: F | E107: 1 | F107: =FETCHCOMMENT(E107) -> 11-056404 | G107: 1 | H107: =FETCHCOMMENT(G107) -> O.C. JONES & SONS, INC. | I107: 11
A108: G R SUNDBERG, INC. | B108: -4142 | C108: 7149176.25 | D108: M | E108: 4 | F108: =FETCHCOMMENT(E108) -> 01-0K4104 01-0J8904 01-0K9404 06-487404 | G108: 3 | H108: =FETCHCOMMENT(G108) -> G R SUNDBERG, INC. MERCER-FRASER COMPANY WYLATTI RESOURCE MANAGEMENT, INC. | I108: 1
A109: KRC SAFETY CO INC | B109: 33 | C109: 2414789 | D109: M | E109: 7 | F109: =FETCHCOMMENT(E109) -> 05-1J7804 06-0X2504 05-1Q03U4 05-1K4504 05-1K5104 05-1K6404 06-487404 | G109: 4 | H109: =FETCHCOMMENT(G109) -> CALPORTLAND CONSTRUCTION PAPICH CONSTRUCTION COMPANY, INC. GRANITE CONSTRUCTION COMPANY CENTRAL COAST FINANCIAL GROUP, INC. DBA CCFG CONSTRUCTION | I109: 5,6
A110: SPIRIT ROAD OILS | B110: -4142 | C110: 379280 | D110: F | E110: 2 | F110: =FETCHCOMMENT(E110) -> 04-2Q6104 04-0K6404 | G110: 2 | H110: =FETCHCOMMENT(G110) -> GRANITE ROCK COMPANY HAZARD CONSTRUCTION ENGR, LLC | I110: 4
A111: SPURS TRUCKING AND EQUIPMENT, INC. | B111: 43 | C111: 52200 | D111: F | E111: 1 | F111: =FETCHCOMMENT(E111) -> 02-4H0604 | G111: 1 | H111: =FETCHCOMMENT(G111) -> HAT CREEK CONSTRUCTION & MATERIALS, INC. | I111: 2
A112: S.T. RHOADES CONSTRUCTION | B112: -4142 | C112: 2934564.65 | D112: M | E112: 6 | F112: =FETCHCOMMENT(E112) -> 02-4H0604 02-4H03U4 03-2J5904 02-4H0104 02-4H0704 03-1H1404 | G112: 3 | H112: =FETCHCOMMENT(G112) -> HAT CREEK CONSTRUCTION & MATERIALS, INC. STUDEBAKER ELECTRIC, INC. MARTIN BROTHERS CONSTRUCTION | I112: 2,3
A113: WEST COAST DRILLING | B113: -4142 | C113: 6415725 | D113: F | E113: 1 | F113: =FETCHCOMMENT(E113) -> 06-487404 | G113: 1 | H113: =FETCHCOMMENT(G113) -> GRANITE CONSTRUCTION COMPANY | I113: 6
F114: =FETCHCOMMENT(E114) ->  | H114: =FETCHCOMMENT(G114) -> 
F115: =FETCHCOMMENT(E115) ->  | H115: =FETCHCOMMENT(G115) -> 
A117: African American | B117: Column1 | C117: Dollars | D117: M/F | E117: Contract | F117: Contract # | G117: Prime | H117: Prime Name | I117: Districts
A118: ALLUVION BIOLOGICAL CONSULTING | B118: -4142 | C118: 160600 | D118: M | E118: 2 | F118: =FETCHCOMMENT(E118) -> 10-0Q2104 01-0J8904 | G118: 2 | H118: =FETCHCOMMENT(G118) -> BAY CITIES PAVING & GRADING, INC. MERCER-FRASER COMPANY | I118: 1,10
A119: APPIAN UDBE SWPPPS | B119: -4142 | C119: 750 | D119: F | E119: 1 | F119: =FETCHCOMMENT(E119) -> 05-1K6404 | G119: 1 | H119: =FETCHCOMMENT(G119) -> GRANITE CONSTRUCTION COMPANY | I119: 5
A120: BLACK DIAMOND ASPHALT INC | B120: 33 | C120: 5026625.63 | D120: F | E120: 4 | F120: =FETCHCOMMENT(E120) -> 03-0J01U4 03-4H8704 01-0J8904 10-1L2804 | G120: 2 | H120: =FETCHCOMMENT(G120) -> MERCER-FRASER COMPANY O.C. JONES & SONS, INC. | I120: 1,3,10
A121: CGO CONSTRUCTION COMPANY | B121: -4142 | C121: 150000 | D121: M | E121: 1 | F121: =FETCHCOMMENT(E121) -> 08-1K4004 | G121: 1 | H121: =FETCHCOMMENT(G121) -> BEADOR CONSTRUCTION COMPANY, INC. | I121: 8
A122: DBE DIRECT, LLC | B122: -4142 | C122: 541500 | D122: M | E122: 2 | F122: =FETCHCOMMENT(E122) -> 06-487404 08-1K6904 | G122: 1 | H122: =FETCHCOMMENT(G122) -> GRANITE CONSTRUCTION COMPANY | I122: 6,8
A123: DEPENDABLE PETROLEUM | B123: 33 | C123: 5070 | D123: M | E123: 1 | F123: =FETCHCOMMENT(E123) -> 07-4X9704 | G123: 1 | H123: =FETCHCOMMENT(G123) -> BEADOR CONSTRUCTION COMPANY, INC. | I123: 7
A124: HYDRO2GEOTECH, LLC | B124: -4142 | C124: 247100 | D124: M | E124: 2 | F124: =FETCHCOMMENT(E124) -> 05-1H6504 12-0K91U4 | G124: 1 | H124: =FETCHCOMMENT(G124) -> GRANITE CONSTRUCTION COMPANY | I124: 5,12
A125: K&G CONCRETE PUMPING | B125: -4142 | C125: 2300 | D125: M | E125: 1 | F125: =FETCHCOMMENT(E125) -> 05-1K6404 | G125: 1 | H125: =FETCHCOMMENT(G125) -> GRANITE CONSTRUCTION COMPANY | I125: 5
A126: SNLM LANDSCAPE | B126: -4142 | C126: 250000 | D126: M | E126: 1 | F126: =FETCHCOMMENT(E126) -> 12-0K91U4 | G126: 1 | H126: =FETCHCOMMENT(G126) -> GRANITE CONSTRUCTION COMPANY | I126: 12
A127: SYNERGY TRAFFIC CONTROL | B127: -4142 | C127: 653325 | D127: M | E127: 1 | F127: =FETCHCOMMENT(E127) -> 12-0R3134 | G127: 1 | H127: =FETCHCOMMENT(G127) -> PETERSON-CHASE GENERAL ENGINEERING CONSTRUCTION, INC. | I127: 12
A128: THE QUALITY FIRM, ACS, AC SERVICES | B128: -4142 | C128: 312805 | D128: M | E128: 2 | F128: =FETCHCOMMENT(E128) -> 08-1J6104 08-1J2704 | G128: 2 | H128: =FETCHCOMMENT(G128) -> FBD VANGUARD CONSTRUCTION, INC. SULLY-MILLER CONTRACTING COMPANY | I128: 8
A129: THOMPSON CONTRACTING | B129: -4142 | C129: 2516950 | D129: M | E129: 2 | F129: =FETCHCOMMENT(E129) -> 01-0F7104 02-0K6404 | G129: 2 | H129: =FETCHCOMMENT(G129) -> GHILOTTI CONSTRUCTION COMPANY, INC. MCCUEN CONSTRUCTION, INC. | I129: 1,2
A130: TIPCO ENGINEERING, INC. | B130: -4142 | C130: 2060770 | D130: M | E130: 2 | F130: =FETCHCOMMENT(E130) -> 08-1K4004 12-0K91U4 | G130: 2 | H130: =FETCHCOMMENT(G130) -> BEADOR CONSTRUCTION COMPANY, INC. GRANITE CONSTRUCTION COMPANY | I130: 8,12
F131: =FETCHCOMMENT(E131) ->  | H131: =FETCHCOMMENT(G131) -> 
A133: Sub Cont Asian | B133: Column1 | C133: Dollars | D133: M/F | E133: Contract | F133: Contract # | G133: Prime | H133: Prime Name | I133: Districts
A134: A1 TRUCKING SVS INC | B134: -4142 | C134: 767489.44 | D134: M | E134: 3 | F134: =FETCHCOMMENT(E134) -> 04-0P7604 04-2Q8004 05-1H6504 | G134: 3 | H134: =FETCHCOMMENT(G134) -> ST. FRANCIS ELECTRIC, LLC. GORDON N. BALL, INC. GRANITE CONSTRUCTION COMPANY | I134: 4,5
A135: CENTRAL TRUCKING, INC. | B135: 43 | C135: 684990 | D135: M | E135: 1 | F135: =FETCHCOMMENT(E135) -> 10-0Q2104 | G135: 1 | H135: =FETCHCOMMENT(G135) -> BAY CITIES PAVING & GRADING, INC. | I135: 10
A136: DESTINATION ANYWHERE, INC. | B136: -4142 | C136: 84000 | D136: M | E136: 1 | F136: =FETCHCOMMENT(E136) -> 10-1L2804 | G136: 1 | H136: =FETCHCOMMENT(G136) -> O.C. JONES & SONS, INC. | I136: 10
A137: JABI TRUCKING | B137: 43 | C137: 3482110 | D137: M | E137: 2 | F137: =FETCHCOMMENT(E137) -> 01-0H6004 01-0H6404 | G137: 2 | H137: =FETCHCOMMENT(G137) -> ARGONAUT CONSTRUCTORS | I137: 1
A138: JASS BOYS TRUCK LINES | B138: 43 | C138: 691080 | D138: M | E138: 1 | F138: =FETCHCOMMENT(E138) -> 04-2K7404 | G138: 1 | H138: =FETCHCOMMENT(G138) -> BAY CITIES PAVING & GRADING, INC. | I138: 4
A139: S&S TRUCKING | B139: 43 | C139: 225150 | D139: M | E139: 1 | F139: =FETCHCOMMENT(E139) -> 01-0F7104 | G139: 1 | H139: =FETCHCOMMENT(G139) -> GHILOTTI CONSTRUCTION COMPANY, INC. | I139: 1
A140: SIERRA GEOTECH DBE INC | B140: -4142 | C140: 250208.64 | D140: M | E140: 3 | F140: =FETCHCOMMENT(E140) -> 03-0J01U4 01-0F7104 05-1H6504 | G140: 3 | H140: =FETCHCOMMENT(G140) -> MERCER-FRASER COMPANY GHILOTTI CONSTRUCTION COMPANY, INC. GRANITE CONSTRUCTION COMPANY | I140: 1,3,5
A141: SEQUOIA CONSULTANTS | B141: 33 | C141: 988657 | D141: M | E141: 8 | F141: =FETCHCOMMENT(E141) -> 03-4H8704 11-430384 08-1J6104 12-0R3134 11-056404 06-487404 08-1K4004 08-1K6904 | G141: 6 | H141: =FETCHCOMMENT(G141) -> O.C. JONES & SONS, INC. HAZARD CONSTRUCTION ENGR, LLC FBD VANGUARD CONSTRUCTION, INC. PETERSON-CHASE GENERAL ENGINEERING CONSTRUCTION, INC. GRANITE CONSTRUCTION COMPANY BEADOR CONSTRUCTION COMPANY, INC. | I141: 3,8,11,12
A142: TSI ENGINEERING, INC. | B142: -4142 | C142: 6124087 | D142: M | E142: 1 | F142: =FETCHCOMMENT(E142) -> 08-1J3304 | G142: 1 | H142: =FETCHCOMMENT(G142) -> TSI ENGINEERING, INC. | I142: 8
F143: =FETCHCOMMENT(E143) ->  | H143: =FETCHCOMMENT(G143) -> 
F144: =FETCHCOMMENT(E144) ->  | H144: =FETCHCOMMENT(G144) -> 
F145: =FETCHCOMMENT(E145) ->  | H145: =FETCHCOMMENT(G145) -> 
F146: =FETCHCOMMENT(E146) ->  | H146: =FETCHCOMMENT(G146) -> 
A148: Asian Pacific | B148: Column1 | C148: Dollars | D148: M/F | E148: Contract | F148: Contract # | G148: Prime | H148: Prime Name | I148: Districts
A149: ACCU CONSTRUCTION | B149: -4142 | C149: 1057600 | D149: M | E149: 2 | F149: =FETCHCOMMENT(E149) -> 07-348404 07-356504 | G149: 1 | H149: =FETCHCOMMENT(G149) -> ACCU CONSTRUCTION, INC. | I149: 7
A150: ACE FENCE COMPANY | B150: -4142 | C150: 4472450.5 | D150: F | E150: 12 | F150: =FETCHCOMMENT(E150) -> 11-430384 06-0X250 07-333604 12-0R3134 05-1Q03U4 08-1J3004 11-056404 06-487404 07-4X9704 12-0K91U4 12-0R3154 08-1K6904 | G150: 7 | H150: =FETCHCOMMENT(G150) -> HAZARD CONSTRUCTION ENGR, LLC GRANITE CONSTRUCTION COMPANY SULLY-MILLER CONTRACTING COMPANY PETERSON-CHASE GENERAL ENGINEERING CONSTRUCTION, INC. PAPICH CONSTRUCTION COMPANY, INC. BEADOR CONSTRUCTION COMPANY, INC. POWELL CONSTRUCTORS, INC. | I150: 5,6,7,8,11,12
A151: ACE SWEEPERS & WATER TRUCKS | B151: 43 | C151: 158990 | D151: M | E151: 3 | F151: =FETCHCOMMENT(E151) -> 04-0K6404 04-3J2604 10-1L2804 | G151: 1 | H151: =FETCHCOMMENT(G151) -> O.C. JONES & SONS, INC. | I151: 4,10
A152: BRIDGE RUBBER BEARING, LLC | B152: -4142 | C152: 66608 | D152: M | E152: 1 | F152: =FETCHCOMMENT(E152) -> 06-487404 | G152: 1 | H152: =FETCHCOMMENT(G152) -> GRANITE CONSTRUCTION COMPANY | I152: 6
A153: CALIFORNIA PROFESSIONAL | B153: -4142 | C153: 344000 | D153: M | E153: 3 | F153: =FETCHCOMMENT(E153) -> 07-4X9704 08-1J2704 12-0S7004 | G153: 3 | H153: =FETCHCOMMENT(G153) -> BEADOR CONSTRUCTION COMPANY, INC. SULLY-MILLER CONTRACTING COMPANY AUTOBAHN CONSTRUCTION, INC. | I153: 7,8,12
A154: GLOBAL ROAD SEALING INC | B154: -4142 | C154: 1063675 | D154: M | E154: 7 | F154: =FETCHCOMMENT(E154) -> 12-0S1404 01-0H6004 07-333604 07-377604 08-1J7204 12-0K91U4 12-0R57U4 | G154: 6 | H154: =FETCHCOMMENT(G154) -> CHUMO CONSTRUCTION, INC. ARGONAUT CONSTRUCTORS SULLY-MILLER CONTRACTING COMPANY PTM GENERAL ENGINEERING SERVICES, INC. GRANITE CONSTRUCTION COMPANY SECURITY PAVING COMPANY, INC. | I154: 1,7,8,12
A155: GOLDEN STATE TRUCKING | B155: 43 | C155: 661700 | D155: M | E155: 2 | F155: =FETCHCOMMENT(E155) -> 04-0K6404 04-3J2604 | G155: 1 | H155: =FETCHCOMMENT(G155) -> O.C. JONES & SONS, INC. | I155: 4
A156: IMRAE | B156: -4142 | C156: 46458 | D156: M | E156: 1 | F156: =FETCHCOMMENT(E156) -> 01-0J8904 | G156: 1 | H156: =FETCHCOMMENT(G156) -> MERCER-FRASER COMPANY | I156: 1
A157: LEGACY REINFORCING STEEL LLC | B157: -4142 | C157: 980929.76 | D157: M | E157: 2 | F157: =FETCHCOMMENT(E157) -> 11-056404 08-1K4004 | G157: 2 | H157: =FETCHCOMMENT(G157) -> HAZARD CONSTRUCTION ENGR, LLC BEADOR CONSTRUCTION COMPANY, INC. | I157: 8,11
A158: NITTA EROSION CONTROL | B158: -4142 | C158: 18699.2 | D158: F | E158: 1 | F158: =FETCHCOMMENT(E158) -> 10-0Q2104 | G158: 1 | H158: =FETCHCOMMENT(G158) -> BAY CITIES PAVING & GRADING, INC. | I158: 10
A159: PRIME SUPPLY 1 | B159: -4142 | C159: 178057.75 | D159: F | E159: 5 | F159: =FETCHCOMMENT(E159) -> 11-430384 05-1J7804 11-056404 01-0H6404 12-0R57U4 | G159: 4 | H159: =FETCHCOMMENT(G159) -> HAZARD CONSTRUCTION ENGR, LLC CALPORTLAND CONSTRUCTION WYLATTI RESOURCE MANAGEMENT, INC. SECURITY PAVING COMPANY, INC. | I159: 1,5,11,12
A160: S. KWOK ENGINEERS | B160: -4142 | C160: 19650 | D160: M | E160: 1 | F160: =FETCHCOMMENT(E160) -> 04-2K7404 | G160: 1 | H160: =FETCHCOMMENT(G160) -> BAY CITIES PAVING & GRADING, INC. | I160: 4
A161: TRAFFIC LOOPS CRACKFILLING INC | B161: -4142 | C161: 3326375 | D161: F | E161: 3 | F161: =FETCHCOMMENT(E161) -> 11-430384 08-1J6104 12-0R57U4 | G161: 3 | H161: =FETCHCOMMENT(G161) -> HAZARD CONSTRUCTION ENGR, LLC FBD VANGUARD CONSTRUCTION, INC. SECURITY PAVING COMPANY, INC. | I161: 8,11,12
A162: TRI COUNTIES TRUCKING | B162: 43 | C162: 1228385 | D162: F | E162: 3 | F162: =FETCHCOMMENT(E162) -> 03-4H8704 04-0K6404 03-1H1404 | G162: 2 | H162: =FETCHCOMMENT(G162) -> O.C. JONES & SONS, INC. MARTIN BROTHERS CONSTRUCTION | I162: 3,4
A163: TRINITY FENCE COMPANY | B163: -4142 | C163: 700154 | D163: M | E163: 1 | F163: =FETCHCOMMENT(E163) -> 08-1K4004 | G163: 1 | H163: =FETCHCOMMENT(G163) -> BEADOR CONSTRUCTION COMPANY, INC. | I163: 8
F164: =FETCHCOMMENT(E164) ->  | H164: =FETCHCOMMENT(G164) -> 
F165: =FETCHCOMMENT(E165) ->  | H165: =FETCHCOMMENT(G165) -> 
A167: Other | B167: Column1 | C167: Dollars | D167: M/F | E167: Contract | F167: Contract # | G167: Prime | H167: Prime Name | I167: Districts
F168: =FETCHCOMMENT(E168) ->  | H168: =FETCHCOMMENT(G168) -> 
F169: =FETCHCOMMENT(E169) ->  | H169: =FETCHCOMMENT(G169) -> 
A171: Non Minority Women | B171: Column1 | C171: Dollars | D171: M/F | E171: Contract | F171: Contract # | G171: Prime | H171: Prime Name | I171: Districts
A172: ACTION SWEEPING SERVICES INC | B172: 43 | C172: 201290 | D172: F | E172: 2 | F172: =FETCHCOMMENT(E172) -> 03-4H8704 06-487404 | G172: 2 | H172: =FETCHCOMMENT(G172) -> O.C. JONES & SONS, INC. GRANITE CONSTRUCTION COMPANY | I172: 3,6
A173: ALTA GROUP | B173: -4142 | C173: 295500 | D173: F | E173: 2 | F173: =FETCHCOMMENT(E173) -> 03-4H8704 04-2K7404 | G173: 2 | H173: =FETCHCOMMENT(G173) -> O.C. JONES & SONS, INC. BAY CITIES PAVING & GRADING, INC. | I173: 3,4
A174: AURORA INDSTRIAL HYGIENE | B174: -4142 | C174: 1000 | D174: F | E174: 1 | F174: =FETCHCOMMENT(E174) -> 02-3H6904 | G174: 1 | H174: =FETCHCOMMENT(G174) -> DIG IT CONSTRUCTION, INC. | I174: 2
A175: AVILA TRAFFIC SAFETY | B175: 33 | C175: 3188598.6 | D175: F | E175: 5 | F175: =FETCHCOMMENT(E175) -> 05-1J7804 04-1Q2004 05-1H6504 05-1K4504 05-1K5104 | G175: 4 | H175: =FETCHCOMMENT(G175) -> CALPORTLAND CONSTRUCTION COLUMBIA ELECTRIC, INC. GRANITE CONSTRUCTION COMPANY CENTRAL COAST FINANCIAL GROUP, INC. DBA CCFG CONSTRUCTION | I175: 4,5
A176: BANCROFT CONSTRUCTION SERVICES | C176: 1250248 | D176: F | E176: 1 | F176: =FETCHCOMMENT(E176) -> 08-1K6904 | G176: 1 | H176: =FETCHCOMMENT(G176) -> GRANITE CONSTRUCTION COMPANY | I176: 8
A177: BOUTHILLIER CONSTRUCTION, INC. | B177: -4142 | C177: 882747 | D177: F | E177: 1 | F177: =FETCHCOMMENT(E177) -> 01-0H6404 | G177: 1 | H177: =FETCHCOMMENT(G177) -> WYLATTI RESOURCE MANAGEMENT, INC. | I177: 1
A178: CAIN TRUCKING, INC. | B178: -4142 | C178: 1776800 | D178: F | E178: 1 | F178: =FETCHCOMMENT(E178) -> 06-487404 | G178: 1 | H178: =FETCHCOMMENT(G178) -> GRANITE CONSTRUCTION COMPANY | I178: 6
A179: CAL SIGNAL CORP | B179: -4142 | C179: 308348.88 | D179: F | E179: 3 | F179: =FETCHCOMMENT(E179) -> 04-2Q8004 05-1H6504 05-1K6404 | G179: 2 | H179: =FETCHCOMMENT(G179) -> GORDON N. BALL, INC. GRANITE CONSTRUCTION COMPANY | I179: 4,5
A180: CALIFORNIA TRAFFIC SAFETY | B180: -4142 | C180: 684628.5 | D180: F | E180: 1 | F180: =FETCHCOMMENT(E180) -> 04-0K6404 | G180: 1 | H180: =FETCHCOMMENT(G180) -> O.C. JONES & SONS, INC. | I180: 4
A181: CAROLINA CONSTRUCTION SUPPLIES | B181: 33 | C181: 406308.28 | D181: F | E181: 2 | F181: =FETCHCOMMENT(E181) -> 12-0K91U4 12-0R57U4 | G181: 2 | H181: =FETCHCOMMENT(G181) -> GRANITE CONSTRUCTION COMPANY SECURITY PAVING COMPANY, INC. | I181: 12
A182: CAT TRACKING | B182: -4142 | C182: 50534 | D182: F | E182: 1 | F182: =FETCHCOMMENT(E182) -> 07-4X9704 | G182: 1 | H182: =FETCHCOMMENT(G182) -> BEADOR CONSTRUCTION COMPANY, INC. | I182: 7
A183: CMC TRAFFIC CONTROL | B183: -4142 | C183: 1237402 | D183: F | E183: 3 | F183: =FETCHCOMMENT(E183) -> 04-0K1004 04-3J2604 04-2Q8004 | G183: 3 | H183: =FETCHCOMMENT(G183) -> MIKE BROWN ELECTRIC CO. O.C. JONES & SONS, INC. GORDON N. BALL, INC. | I183: 4
A184: COLUMBIA ELECTRIC, INC. | B184: -4142 | C184: 6089979 | D184: F | E184: 3 | F184: =FETCHCOMMENT(E184) -> 04-1Q2004 04-0K6404 04-0P9204 | G184: 3 | H184: =FETCHCOMMENT(G184) -> COLUMBIA ELECTRIC, INC. O.C. JONES & SONS, INC. MYERS & SONS CONSTRUCTION, LLC. | I184: 2,4
A185: CONSTRUCTION SURVEY, INC. | B185: -4142 | C185: 16000 | D185: F | E185: 1 | F185: =FETCHCOMMENT(E185) -> 04-2Q6104 | G185: 1 | H185: =FETCHCOMMENT(G185) -> GRANITE ROCK COMPANY | I185: 4
A186: CONTERA CONSTRUCTION CORP | B186: 33 | C186: 2100400 | D186: F | E186: 2 | F186: =FETCHCOMMENT(E186) -> 11-056404 08-1K4004 | G186: 2 | H186: =FETCHCOMMENT(G186) -> HAZARD CONSTRUCTION ENGR, LLC BEADOR CONSTRUCTION COMPANY, INC. | I186: 8,11
A187: COOPER ENGINEERING | B187: -4142 | C187: 1874947.28 | D187: F | E187: 2 | F187: =FETCHCOMMENT(E187) -> 12-0S1404 12-0R3134 | G187: 2 | H187: =FETCHCOMMENT(G187) -> CHUMO CONSTRUCTION, INC. PETERSON-CHASE GENERAL ENGINEERING CONSTRUCTION, INC. | I187: 12
A188: CRW ASSIST | B188: -4142 | C188: 121270 | D188: F | E188: 1 | F188: =FETCHCOMMENT(E188) -> 02-3H6904 | G188: 1 | H188: =FETCHCOMMENT(G188) -> DIG IT CONSTRUCTION, INC. | I188: 2
A189: DEES BURKE ENGINEERING | B189: -4142 | C189: 4815561.3 | D189: F | E189: 12 | F189: =FETCHCOMMENT(E189) -> 05-1J7804 04-2Q6104 04-4K3004 01-0J8904 04-0P9204 02-4H0704 04-2Q8004 05-1H6504 05-1K4504 12-0K91U4 12-0R3154 08-1K6904 | G189: 8 | H189: =FETCHCOMMENT(G189) -> CALPORTLAND CONSTRUCTION GRANITE ROCK COMPANY GORDON N. BALL, INC. MERCER-FRASER COMPANY MYERS & SONS CONSTRUCTION LLC HAT CREEK CONSTRUCTION & MATERIALS, INC. GRANITE CONSTRUCTION COMPANY POWELL CONSTRUCTORS, INC. | I189: 1,2,4,5,8,12
A190: DIVERSIFIED LANDSCAPE CO | B190: -4142 | C190: 6917353.56 | D190: F | E190: 8 | F190: =FETCHCOMMENT(E190) -> 11-430384 07-333604 08-1J6104 08-1J3004 08-1J2704 08-1J7204 12-0K91U4 08-1K6904 | G190: 4 | H190: =FETCHCOMMENT(G190) -> HAZARD CONSTRUCTION ENGR, LLC SULLY-MILLER CONTRACTING COMPANY FBD VANGUARD CONSTRUCTION, INC. GRANITE CONSTRUCTION COMPANY | I190: 7,8,11,12
A191: DOUBLE E TRANSPORTATION INC | B191: 43 | C191: 182347.2 | D191: F | E191: 1 | F191: =FETCHCOMMENT(E191) -> 05-1Q03U4 | G191: 1 | H191: =FETCHCOMMENT(G191) -> PAPICH CONSTRUCTION COMPANY, INC. | I191: 5
A192: E. AMEZCUA TRUCKING, INC. | B192: 43 | C192: 139780 | D192: F | E192: 1 | F192: =FETCHCOMMENT(E192) -> 05-1K6404 | G192: 1 | H192: =FETCHCOMMENT(G192) -> GRANITE CONSTRUCTION COMPANY | I192: 5
A193: ETA HUMBOLDT | B193: -4142 | C193: 248676.25 | D193: F | E193: 1 | F193: =FETCHCOMMENT(E193) -> 01-0H6404 | G193: 1 | H193: =FETCHCOMMENT(G193) -> WYLATTI RESOURCE MANAGEMENT, INC. | I193: 1
A194: FOREFRONT DEEP FOUNDATIONS INC | B194: -4142 | C194: 266470.52 | D194: F | E194: 1 | F194: =FETCHCOMMENT(E194) -> 05-1J7804 | G194: 1 | H194: =FETCHCOMMENT(G194) -> CALPORTLAND CONSTRUCTION | I194: 5
A195: GALLAWAY ENTERPRISES | B195: -4142 | C195: 12635 | D195: F | E195: 2 | F195: =FETCHCOMMENT(E195) -> 03-4H8704 02-4H0604 | G195: 2 | H195: =FETCHCOMMENT(G195) -> O.C. JONES & SONS, INC. HAT CREEK CONSTRUCTION & MATERIALS, INC. | I195: 2,3
A196: GDS INDUSTRIES INC | B196: 33 | C196: 542262.87 | D196: F | E196: 1 | F196: =FETCHCOMMENT(E196) -> 04-0P7604 | G196: 1 | H196: =FETCHCOMMENT(G196) -> ST. FRANCIS ELECTRIC, LLC. | I196: 4
A197: GREGORY CONSTRUCTION EQUIPMENT | B197: 43 | C197: 209920 | D197: F | E197: 3 | F197: =FETCHCOMMENT(E197) -> 03-0J01U4 02-3H6904 10-0Q2104 | G197: 3 | H197: =FETCHCOMMENT(G197) -> MERCER-FRASER COMPANY DIG IT CONSTRUCTION, INC. BAY CITIES PAVING & GRADING, INC. | I197: 2,3,10
A198: J & M LAND RESTORATION INC | B198: -4142 | C198: 2719622.2 | D198: F | E198: 4 | F198: =FETCHCOMMENT(E198) -> 05-1J7804 02-4H0604 05-1Q03U4 06-487404 | G198: 4 | H198: =FETCHCOMMENT(G198) -> CALPORTLAND CONSTRUCTION HAT CREEK CONSTRUCTION & MATERIALS, INC. PAPICH CONSTRUCTION COMPANY, INC. GRANITE CONSTRUCTION COMPANY | I198: 2,5,6
A199: JARRETT FOUNDATIONS | B199: 33 | C199: 299297.5 | D199: F | E199: 1 | F199: =FETCHCOMMENT(E199) -> 01-0J8904 | G199: 1 | H199: =FETCHCOMMENT(G199) -> MERCER-FRASER COMPANY | I199: 1
A200: K&K CONSTRUCTION SUPPLY, INC. | B200: 33 | C200: 312912.56 | D200: F | E200: 2 | F200: =FETCHCOMMENT(E200) -> 08-1J6104 06-487404 | G200: 2 | H200: =FETCHCOMMENT(G200) -> FBD VANGUARD CONSTRUCTION, INC. GRANITE CONSTRUCTION COMPANY | I200: 6,8
A201: LINDY'S COLD PLANNING | B201: -4142 | C201: 8125604.73 | D201: F | E201: 7 | F201: =FETCHCOMMENT(E201) -> 07-333604 08-1J6104 08-1J2704 08-1J7204 08-1K4004 12-0K91U4 08-1K6904 | G201: 4 | H201: =FETCHCOMMENT(G201) -> SULLY-MILLER CONTRACTING COMPANY FBD VANGUARD CONSTRUCTION, INC. BEADOR CONSTRUCTION COMPANY, INC. GRANITE CONSTRUCTION COMPANY | I201: 7,8,12
A202: LMS TRANSPORT | B202: 33 | C202: 6896697.18 | D202: F | E202: 9 | F202: =FETCHCOMMENT(E202) -> 05-1J7804 12-0S1404 07-333604 08-1J6104 05-1K4504 08-1J2704 08-1J7204 08-1K4004 08-1K6904 | G202: 6 | H202: =FETCHCOMMENT(G202) -> CALPORTLAND CONSTRUCTION CHUMO CONSTRUCTION, INC. SULLY-MILLER CONTRACTING COMPANY FBD VANGUARD CONSTRUCTION, INC. BEADOR CONSTRUCTION COMPANY, INC. GRANITE CONSTRUCTION COMPANY | I202: 5,7,8,12
A203: LOGISTICAL ENTERPRISES | B203: -4142 | C203: 128019.18 | D203: F | E203: 1 | F203: =FETCHCOMMENT(E203) -> 02-1J75U4 | G203: 1 | H203: =FETCHCOMMENT(G203) -> HAT CREEK CONSTRUCTION & MATERIALS, INC. | I203: 2
A204: LOWERS WELDING & FABRICATION | B204: -4142 | C204: 52477.88 | D204: F | E204: 1 | F204: =FETCHCOMMENT(E204) -> 01-0H6404 | G204: 1 | H204: =FETCHCOMMENT(G204) -> WYLATTI RESOURCE MANAGEMENT, INC. | I204: 1
A205: MCW TRAFFIC CONTROL | B205: -4142 | C205: 516769 | D205: F | E205: 3 | F205: =FETCHCOMMENT(E205) -> 03-4H8704 01-0F7104 02-0K6404 | G205: 3 | H205: =FETCHCOMMENT(G205) -> O.C. JONES & SONS, INC. GHILOTTI CONSTRUCTION COMPANY, INC. MCCUEN CONSTRUCTION, INC. | I205: 1,2,3
A206: MOUNTAINVIEW BIOLOGICAL | B206: -4142 | C206: 114000 | D206: F | E206: 1 | F206: =FETCHCOMMENT(E206) -> 08-1K4004 | G206: 1 | H206: =FETCHCOMMENT(G206) -> BEADOR CONSTRUCTION COMPANY, INC. | I206: 8
A207: NICHOLLS TRUCKING INC | B207: 43 | C207: 140000 | D207: F | E207: 1 | F207: =FETCHCOMMENT(E207) -> 01-0J8904 | G207: 1 | H207: =FETCHCOMMENT(G207) -> MERCER-FRASER COMPANY | I207: 1
A208: NORTH STATE GENERAL ENGINEERING | B208: -4142 | C208: 584727 | D208: F | E208: 2 | F208: =FETCHCOMMENT(E208) -> 03-1H1404 03-3H8304 | G208: 2 | H208: =FETCHCOMMENT(G208) -> MARTIN BROTHERS CONSTRUCTION PACIFIC INFRASTRUCTURE CONSTRUCTION, LLC | I208: 3
A209: PAVEMENT MANAGEMENT | B209: -4142 | C209: 35000 | D209: F | E209: 1 | F209: =FETCHCOMMENT(E209) -> 02-3H6904 | G209: 1 | H209: =FETCHCOMMENT(G209) -> DIG IT CONSTRUCTION, INC. | I209: 2
A210: PAYCO SPECIALTIES | B210: -4142 | C210: 3447356.59 | D210: F | E210: 2 | F210: =FETCHCOMMENT(E210) -> 11-430384 11-056404 | G210: 1 | H210: =FETCHCOMMENT(G210) -> HAZARD CONSTRUCTION ENGR, LLC | I210: 11
A211: PC&N CONSTRUCTION JINC | B211: 33 | C211: 1095741.75 | D211: F | E211: 3 | F211: =FETCHCOMMENT(E211) -> 04-0K6404 04-0P9204 04-0P7604 | G211: 3 | H211: =FETCHCOMMENT(G211) -> O.C. JONES & SONS, INC. MYERS & SONS CONSTRUCTION, LLC. ST. FRANCIS ELECTRIC, LLC. | I211: 4
... 34 more rows
